bitfinex/quotes_SOLUSD_20251128
["timestamp","ask_amount","ask_price","bid_price","bid_amount"]
[1764351833187,11.8537443,137.36,137.29,27.70892714]
[1764351833188,30.05409374,137.36,137.32,3.24]
[1764351833394,3.86360453,137.33,137.31,3.24]
[1764351833766,108.67360453,137.35,137.32,0.69]
[1764351834063,108.67360453,137.35,137.31,3.93]
[1764351834265,0.71,137.38,137.32,9.78426806]
[1764351834479,104.1,137.42,137.34,0.28432314]
[1764351834480,20.88246853,137.39,137.34,0.28432314]
[1764351834689,20.88246853,137.39,137.35,3.24]
[1764351834872,4.57360453,137.38,137.35,3.24]
[1764351835066,0.71,137.38,137.35,3.24]
[1764351835275,104.81,137.42,137.36,12.11806744]
[1764351835583,104.81,137.42,137.37,3.86360453]
[1764351835584,108.67360453,137.42,137.37,3.86360453]
[1764351835788,115.95063597,137.42,137.38,3.24]
[1764351835994,115.95063597,137.42,137.38,3.93]
[1764351836171,3.86360453,137.4,137.38,3.24]
[1764351836371,4.57360453,137.41,137.38,3.24]
[1764351836587,4.57360453,137.4,137.38,3.24]
[1764351836771,0.71,137.4,137.38,3.24]
[1764351837690,3.86360453,137.39,137.37,3.24]
[1764351838073,0.71,137.38,137.37,3.24]
[1764351838280,3.86360453,137.39,137.37,3.24]
[1764351838486,3.86360453,137.4,137.37,3.24]
[1764351838682,4.57360453,137.4,137.37,3.24]
[1764351838991,108.67360453,137.39,137.37,3.24]
[1764351839376,0.71,137.38,137.37,3.24]
[1764351839681,4.57360453,137.38,137.37,3.24]
[1764351839992,0.71,137.38,137.37,3.24]
[1764351840192,4.57360453,137.38,137.37,3.24]
[1764351841392,22.05799992,137.41,137.37,11.20940592]
[1764351841393,16.308864,137.4,137.37,11.20940592]
[1764351841588,17.018864,137.4,137.37,11.20940592]
[1764351841787,4.57360453,137.39,137.37,3.24]
[1764351842299,24.29690165,137.4,137.37,3.24]
[1764351842474,0.71,137.39,137.37,3.24]
[1764351842787,4.57360453,137.39,137.37,3.24]
[1764351842990,0.71,137.39,137.37,3.24]
[1764351843175,27.45050618,137.4,137.37,3.24]
[1764351843371,104.81,137.39,137.37,3.24]
[1764351843778,108.67360453,137.39,137.37,3.24]
[1764351844682,107.28130134,137.39,137.37,3.24]
[1764351844885,0.67,137.38,137.37,3.24]
[1764351846083,113.84985265,137.39,137.37,3.24]
[1764351846293,114.51985265,137.39,137.37,3.24]
[1764351847206,3.24,137.43,137.38,0.99432314]
[1764351847207,3.14130134,137.43,137.38,0.99432314]
[1764351847383,0.67,137.42,137.38,0.99432314]
[1764351847580,7.27643163,137.43,137.38,0.28432314]
[1764351847783,7.27643163,137.43,137.39,3.95]
[1764351847784,3.14130134,137.43,137.39,3.95]
[1764351847991,3.14130134,137.42,137.39,3.24]
[1764351848197,0.67,137.42,137.39,3.24]
[1764351848399,3.14130134,137.42,137.39,3.24]
[1764351848583,3.14130134,137.42,137.39,3.95]
[1764351848779,2.47130134,137.42,137.39,10.51803556]
[1764351848994,3.14130134,137.42,137.39,10.51803556]
[1764351849387,2.47130134,137.4,137.36,8.23405171]
[1764351849580,2.47130134,137.39,137.37,3.24]
[1764351849981,0.72,137.39,137.37,3.24]
[1764351851208,9.74945943,137.4,137.37,3.24]
[1764351851209,17.028864,137.41,137.37,10.51947064]
[1764351851501,24.30651611,137.41,137.37,11.18947064]
[1764351851691,26.77781745,137.41,137.37,11.18947064]
[1764351851894,0.72,137.4,137.37,11.18947064]
[1764351852479,0.72,137.4,137.37,3.24]
[1764351852685,3.19130134,137.4,137.37,3.24]
[1764351853119,7.99820568,137.4,137.37,3.91]
[1764351853608,7.99820568,137.4,137.37,3.24]
[1764351854310,3.19130134,137.39,137.37,3.24]
[1764351854810,3.19130134,137.38,137.34,0.28432314]
[1764351855002,3.19130134,137.38,137.27,70.55497434]
[1764351855003,2.47130134,137.35,137.3,7.95302264]
[1764351855208,2.47130134,137.35,137.33,3.24]
[1764351855388,0.72,137.34,137.33,3.24]
[1764351856108,0.72,137.36,137.33,3.91]
[1764351856314,16.308864,137.38,137.34,0.95432314]
[1764351856489,0.72,137.37,137.34,0.95432314]
[1764351857007,0.72,137.37,137.34,8.23519808]
[1764351859189,19.50016534,137.38,137.34,8.23519808]
[1764351859989,26.77930749,137.38,137.34,8.23519808]
[1764351860206,26.73930749,137.38,137.34,8.23519808]
[1764351861012,10.43044349,137.38,137.34,8.25519808]
[1764351862216,0.68,137.37,137.34,8.25519808]
[1764351862818,0.68,137.37,137.34,7.56519808]
[1764351863018,3.15130134,137.37,137.34,7.56519808]
[1764351864214,0.68,137.37,137.34,8.25519808]
[1764351866213,0.68,137.37,137.34,7.56519808]
[1764351866796,7.95914215,137.38,137.34,8.25519808]
[1764351867021,104.1,137.37,137.35,0.69]
[1764351867203,104.1,137.37,137.36,3.24]
[1764351867400,104.1,137.37,137.36,3.52432314]
[1764351867600,104.1,137.37,137.36,4.21432314]
[1764351867898,26.73786978,137.41,137.37,0.28432314]
[1764351868224,26.73786978,137.41,137.37,0.97432314]
[1764351868519,23.58656844,137.41,137.37,0.97432314]
[1764351868717,24.26656844,137.41,137.37,0.28432314]
[1764351868917,24.26656844,137.41,137.37,0.97432314]
[1764351869107,7.95770444,137.41,137.38,0.69]
[1764351869309,10.42900578,137.41,137.39,3.24]
[1764351870200,120.408864,137.42,137.36,7.28011603]
[1764351870201,10.42938343,137.4,137.36,7.28011603]
[1764351870393,10.42938343,137.4,137.37,3.24]
[1764351870596,0.68,137.39,137.37,3.24]
[1764351871621,3.15130134,137.39,137.37,3.24]
[1764351871821,106.57130134,137.38,137.36,3.24]
[1764351872022,2.47130134,137.37,137.36,3.24]
[1764351872222,3.15130134,137.37,137.36,3.24]
[1764351872428,3.15130134,137.37,137.33,7.56583573]
[1764351872728,3.15130134,137.36,137.34,3.24]
[1764351873121,0.68,137.35,137.34,3.24]
[1764351873515,2.47130134,137.36,137.34,3.24]
[1764351873700,3.15130134,137.36,137.34,3.24]
[1764351874317,0.68,137.35,137.34,3.24]
[1764351874517,9.75145577,137.36,137.34,3.24]
[1764351874696,10.43145577,137.36,137.34,3.24]
[1764351874899,3.15130134,137.35,137.34,3.24]
[1764351876600,3.15130134,137.35,137.32,7.97221254]
[1764351876601,3.15130134,137.35,137.32,7.28221254]
[1764351876822,0.72,137.34,137.33,3.24]
[1764351877220,114.57213883,137.35,137.33,3.24]
[1764351878930,0.72,137.34,137.33,3.24]
[1764351880926,104.1,137.35,137.33,3.24]
[1764351881117,0.72,137.35,137.33,10.5214662]
[1764351881324,2.47130134,137.36,137.33,11.1914662]
[1764351881624,3.19130134,137.36,137.33,11.1914662]
[1764351882128,2.47130134,137.37,137.34,0.67]
[1764351882325,112.09932232,137.38,137.34,0.67]
[1764351882631,2.47130134,137.36,137.33,10.5214662]
[1764351882812,2.47130134,137.36,137.33,11.1914662]
[1764351883353,10.47091261,137.37,137.33,11.1914662]
[1764351883714,10.47091261,137.37,137.34,0.67]
[1764351883913,2.47130134,137.36,137.33,11.1914662]
[1764351884726,104.1,137.38,137.34,0.28432314]
[1764351884929,104.1,137.38,137.36,0.28432314]
[1764351885115,104.1,137.38,137.37,3.24]
[1764351885504,104.1,137.38,137.37,3.91]
[1764351886003,104.1,137.38,137.37,3.24]
[1764351886820,104.1,137.38,137.32,0.67]
[1764351886821,107.29130134,137.38,137.32,0.67]
[1764351887011,107.29130134,137.38,137.33,3.24]
[1764351887012,2.47130134,137.34,137.33,3.24]
[1764351889541,10.47250128,137.34,137.33,3.24]
[1764351891142,10.47250128,137.34,137.3,3.24]
[1764351891446,3.19130134,137.33,137.3,3.91]
[1764351891941,10.47326289,137.33,137.3,3.91]
[1764351892145,3.19130134,137.33,137.3,3.91]
[1764351892346,0.72,137.33,137.3,3.91]
[1764351892539,3.19130134,137.33,137.3,3.91]
[1764351893940,7.28124211,137.34,137.3,3.24]
[1764351894148,3.19130134,137.34,137.31,0.67]
[1764351894346,3.19130134,137.33,137.3,3.24]
[1764351894527,0.72,137.34,137.31,0.67]
[1764351894739,2.47130134,137.33,137.31,0.67]
[1764351895250,2.47130134,137.33,137.3,11.19327186]
[1764351895547,2.47130134,137.33,137.3,3.91]
[1764351896242,2.47130134,137.33,137.3,11.19330601]
[1764351896645,2.47130134,137.33,137.31,3.24]
[1764351897555,10.47312837,137.33,137.31,3.24]
[1764351898246,3.19130134,137.33,137.31,3.24]
[1764351899146,10.47307883,137.33,137.31,3.24]
[1764351900424,3.19130134,137.32,137.31,3.24]
[1764351901122,7.28177749,137.33,137.31,3.24]
[1764351901523,10.47307883,137.33,137.31,3.24]
[1764351901744,7.28177749,137.33,137.31,3.91]
[1764351902245,9.75307883,137.33,137.31,3.91]
[1764351902422,9.75307883,137.33,137.31,3.24]
[1764351902626,114.57307883,137.33,137.31,3.24]
[1764351903041,113.85307883,137.33,137.31,3.24]
[1764351903646,3.19130134,137.32,137.31,3.24]
[1764351903836,2.47130134,137.32,137.31,3.24]
[1764351904032,9.75356175,137.32,137.31,3.24]
[1764351904238,7.28226041,137.32,137.31,3.24]
[1764351904832,118.66393767,137.37,137.32,0.28432314]
[1764351905035,7.27802037,137.4,137.37,0.28432314]
[1764351905256,0.72,137.43,137.37,0.28432314]
[1764351905257,29.33374599,137.43,137.38,7.10499943]
[1764351905451,7.27643163,137.43,137.39,4.14932257]
[1764351905637,7.27643163,137.43,137.4,4.55499943]
[1764351905953,7.27643163,137.43,137.41,0.69]
[1764351906157,7.27590222,137.44,137.42,3.24]
[1764351906325,11.86090165,137.44,137.42,3.24]
[1764351906528,4.58499943,137.43,137.37,0.69]
[1764351906729,3.86499943,137.42,137.38,3.93]
[1764351906931,4.58499943,137.42,137.38,3.93]
[1764351907152,4.58499943,137.42,137.38,3.24]
[1764351907153,0.72,137.41,137.38,3.24]
[1764351907534,3.86499943,137.42,137.39,0.69]
[1764351907738,11.86220499,137.42,137.39,0.69]
[1764351908758,0.72,137.41,137.38,10.51900604]
[1764351908942,11.86220499,137.42,137.38,10.51900604]
[1764351909144,11.86220499,137.42,137.38,11.20900604]
[1764351910036,23.58496509,137.44,137.39,4.83932257]
[1764351910242,1e-08,137.44,137.4,3.86499943]
[1764351910447,1e-08,137.44,137.42,4.14932257]
[1764351910760,1e-08,137.44,137.43,4.21432314]
[1764351911150,1e-08,137.44,137.43,3.24]
[1764351912142,1e-08,137.44,137.43,11.49075477]
[1764351912460,1e-08,137.44,137.43,24.16569912]
[1764351920737,0.2,137.46,137.45,25.11880892]
[1764351920962,0.2,137.48,137.46,9.09426806]
[1764351921164,0.2,137.49,137.48,25.40313206]
[1764351921473,0.2,137.49,137.48,29.26813149]
[1764351921641,0.2,137.49,137.48,26.12313206]
[1764351921844,0.2,137.49,137.48,29.98813149]
[1764351922042,0.2,137.49,137.48,37.26191676]
[1764351922265,0.2,137.49,137.48,33.39691733]
[1764351922569,0.2,137.49,137.48,37.26191676]
[1764351922764,0.2,137.49,137.48,32.67691733]
[1764351923261,0.2,137.49,137.48,35.91691733]
[1764351923966,0.2,137.49,137.48,19.60805333]
[1764351924763,0.2,137.49,137.48,24.19305276]
[1764351925540,0.2,137.49,137.48,36.63691733]
[1764351925750,0.2,137.49,137.48,40.50191676]
[1764351927955,0.2,137.49,137.48,35.91691733]
[1764351928655,0.87,137.49,137.48,10.51378527]
[1764351928860,0.87,137.49,137.48,10.79810841]
[1764351929672,0.2,137.49,137.48,10.79810841]
[1764351929857,0.87,137.49,137.48,10.79810841]
[1764351930282,0.2,137.49,137.48,10.79810841]
[1764351930482,0.2,137.49,137.48,19.60805333]
[1764351930684,0.2,137.49,137.48,24.19305276]
[1764351931074,0.2,137.49,137.48,19.60805333]
[1764351933074,0.87,137.49,137.48,19.60805333]
[1764351933463,0.2,137.49,137.48,19.60805333]
[1764351933669,0.2,137.49,137.48,24.19305276]
[1764351936473,0.2,137.49,137.48,20.32805333]
[1764351936669,1e-08,137.49,137.48,28.05805219]
[1764351936979,0.2,137.53,137.52,25.40313206]
[1764351937282,0.2,137.53,137.52,32.50813149]
[1764351937464,0.2,137.53,137.52,33.18813149]
[1764351937465,1e-08,137.53,137.52,33.18813149]
[1764351938664,1e-08,137.53,137.52,40.45980106]
[1764351941777,1e-08,137.53,137.52,41.18696801]
[1764351944674,1e-08,137.56,137.53,0.28432314]
[1764351944875,0.2,137.61,137.59,8.80994492]
[1764351945079,0.2,137.61,137.6,12.33426806]
[1764351945279,0.2,137.61,137.6,16.19926749]
[1764351945986,0.2,137.61,137.6,12.95926749]
[1764351946197,0.2,137.61,137.6,23.46670935]
[1764351946690,0.2,137.61,137.6,29.80602179]
[1764351948887,0.91,137.61,137.6,29.80602179]
[1764351949081,0.2,137.61,137.6,29.80602179]
[1764351949278,0.91,137.61,137.6,19.60170992]
[1764351950375,0.91,137.61,137.6,3.24]
[1764351951297,0.2,137.61,137.6,10.791765]
[1764351951495,0.91,137.61,137.6,19.60170992]
[1764351951999,0.91,137.61,137.6,3.52432314]
[1764351952399,0.91,137.61,137.6,3.24]
[1764351953123,0.2,137.61,137.6,3.24]
[1764351953417,0.2,137.61,137.6,29.80602179]
[1764351954709,0.2,137.61,137.6,30.48602179]
[1764351954901,0.2,137.61,137.6,29.80602179]
[1764351955893,0.91,137.61,137.6,19.60170992]
[1764351956099,0.2,137.61,137.6,12.33426806]
[1764351956414,0.91,137.61,137.6,3.52432314]
[1764351956586,0.91,137.61,137.6,3.24]
[1764351960095,0.91,137.61,137.58,7.26842724]
[1764351960295,10.91431187,137.6,137.55,3.24]
[1764351960609,10.20431187,137.58,137.55,3.24]
[1764351960829,10.20431187,137.56,137.55,3.24]
[1764351961114,10.20431187,137.56,137.52,3.24]
[1764351961287,10.20431187,137.53,137.52,3.24]
[1764351961684,10.91431187,137.53,137.51,7.27183381]
[1764351961914,0.71,137.52,137.51,7.27183381]
[1764351964020,10.91431187,137.52,137.5,3.24]
[1764351964319,10.20431187,137.51,137.5,3.24]
[1764351964519,10.91431187,137.51,137.5,3.24]
[1764351964818,0.71,137.51,137.5,3.24]
[1764351966402,7.92082764,137.54,137.5,10.79705041]
[1764351966630,0.65,137.53,137.5,10.79705041]
[1764351969624,6.5211133,137.55,137.51,9.09426806]
[1764351969928,0.65,137.55,137.51,14.96538136]
[1764351970098,104.1,137.56,137.53,5.8711133]
[1764351970295,104.1,137.56,137.54,3.24]
[1764351970718,0.65,137.55,137.54,3.24]
[1764351970919,104.1,137.56,137.54,3.52432314]
[1764351971122,104.75,137.56,137.54,3.52432314]
[1764351971612,104.75,137.56,137.54,10.79441973]
[1764351971811,0.65,137.6,137.55,14.96538136]
[1764351972014,0.65,137.6,137.58,0.28432314]
[1764351972204,0.65,137.6,137.59,3.24]
[1764351972716,0.2,137.61,137.59,3.24]
[1764351972899,0.85,137.61,137.59,3.24]
[1764351973519,0.65,137.6,137.59,3.24]
[1764351974022,0.85,137.61,137.59,10.5079079]
[1764351974248,0.85,137.61,137.59,3.24]
[1764351974399,0.65,137.6,137.59,3.24]
[1764351975092,0.2,137.61,137.59,3.24]
[1764351975093,0.2,137.61,137.59,16.66328997]
[1764351975305,0.2,137.61,137.6,0.28432314]
[1764351975908,0.2,137.61,137.6,7.551765]
[1764351976121,0.2,137.61,137.6,13.4228783]
[1764351976319,0.2,137.61,137.6,22.90282322]
[1764351976603,1e-08,137.61,137.6,28.77393652]
[1764351976806,1e-08,137.61,137.6,22.90282322]
[1764351977623,1e-08,137.61,137.6,28.77393652]
[1764351978807,1e-08,137.61,137.6,22.90282322]
[1764351979112,1e-08,137.63,137.62,0.28432314]
[1764351979414,1e-08,137.63,137.62,28.64313206]
[1764351979621,1e-08,137.63,137.62,35.18424536]
[1764351980235,1e-08,137.63,137.62,35.90951775]
[1764351980405,1e-08,137.63,137.62,41.78063105]
[1764351980835,1e-08,137.63,137.62,42.45063105]
[1764351981627,1e-08,137.63,137.62,35.90951775]
[1764351982128,0.72000001,137.63,137.62,35.90951775]
[1764351982750,0.72000001,137.63,137.62,10.79070883]
[1764351982912,0.72000001,137.63,137.62,10.50638569]
[1764351983114,0.72000001,137.63,137.62,10.79070883]
[1764351984743,1e-08,137.63,137.62,10.79070883]
[1764351984950,1e-08,137.63,137.62,25.47176705]
[1764351985248,1e-08,137.63,137.62,19.60065375]
[1764351985414,1e-08,137.63,137.62,25.47176705]
[1764351987024,1e-08,137.63,137.62,26.14176705]
[1764351987252,1e-08,137.63,137.62,42.45063105]
[1764351988040,1e-08,137.63,137.62,35.90951775]
[1764351988223,1e-08,137.63,137.62,42.45063105]
[1764351991132,1e-08,137.63,137.62,36.57951775]
[1764351991449,1e-08,137.63,137.62,42.45063105]
[1764351991643,1e-08,137.63,137.62,36.57951775]
[1764351991955,1e-08,137.63,137.62,42.45063105]
[1764351992317,1e-08,137.63,137.62,26.14176705]
[1764351994628,1e-08,137.63,137.62,25.18744391]
[1764351994829,1e-08,137.63,137.62,19.31633061]
[1764351995040,1e-08,137.63,137.62,26.02960548]
[1764351995224,1e-08,137.63,137.62,42.48063105]
[1764351995557,1e-08,137.63,137.62,41.78063105]
[1764351995922,1e-08,137.63,137.62,42.48063105]
[1764351996349,1e-08,137.63,137.62,41.78063105]
[1764351996557,1e-08,137.63,137.62,25.47176705]
[1764351997126,1e-08,137.63,137.62,3.24]
[1764351997341,0.68000001,137.63,137.62,3.24]
[1764351997725,0.68000001,137.63,137.62,10.50638569]
[1764351997925,0.68000001,137.63,137.62,25.18744391]
[1764351998132,1e-08,137.63,137.62,26.17176705]
[1764351998542,1e-08,137.63,137.62,42.48063105]
[1764351998750,1e-08,137.63,137.62,26.17176705]
[1764352000038,1e-08,137.63,137.62,19.31633061]
[1764352000240,1e-08,137.63,137.62,41.49630791]
[1764352000444,1e-08,137.63,137.62,41.78063105]
[1764352002638,1e-08,137.63,137.62,42.48063105]
[1764352002846,1e-08,137.63,137.62,41.78063105]
[1764352003555,1e-08,137.63,137.62,42.48063105]
[1764352003760,1e-08,137.63,137.62,26.17176705]
[1764352004136,0.2,137.68,137.62,80.66965978]
[1764352004344,0.88,137.68,137.67,16.3580147]
[1764352004663,0.88,137.68,137.67,10.78806978]
[1764352006963,14.01433235,137.68,137.63,7.26547265]
[1764352007264,6.5511133,137.67,137.64,3.24]
[1764352007432,6.5511133,137.67,137.63,7.26547265]
[1764352007637,5.8711133,137.64,137.59,3.24]
[1764352007853,5.8711133,137.62,137.59,3.24]
[1764352008155,5.8711133,137.61,137.59,3.24]
[1764352008549,0.68,137.6,137.59,3.24]
[1764352013071,0.68,137.6,137.59,10.50797005]
[1764352013269,0.68,137.6,137.59,3.24]
[1764352016459,0.68,137.62,137.59,10.50797005]
[1764352016665,0.68,137.61,137.59,10.50797005]
[1764352016872,0.68,137.63,137.6,5.8711133]
[1764352017058,0.68,137.63,137.61,5.8711133]
[1764352017255,0.68,137.63,137.62,3.24]
[1764352019078,0.68,137.63,137.62,10.50638569]
[1764352019486,16.308864,137.67,137.62,16.37749899]
[1764352019664,0.68,137.67,137.65,5.8711133]
[1764352019864,0.68,137.67,137.66,5.8711133]
[1764352020381,0.68,137.67,137.65,3.24]
[1764352020762,0.68,137.67,137.65,10.50462115]
[1764352022378,6.5511133,137.67,137.65,3.24]
[1764352022574,6.5511133,137.67,137.63,16.37678531]
[1764352022575,0.68,137.67,137.63,16.37678531]
[1764352022882,0.68,137.67,137.64,5.8711133]
[1764352023073,0.68,137.67,137.65,5.8711133]
[1764352023277,0.2,137.68,137.66,3.24]
[1764352023680,6.0711133,137.68,137.66,3.24]
[1764352023983,6.5511133,137.67,137.65,3.24]
[1764352024171,0.68,137.66,137.65,3.24]
[1764352024366,7.94427429,137.66,137.65,3.24]
[1764352024884,13.81538759,137.66,137.65,3.24]
[1764352025400,7.94427429,137.66,137.65,3.24]
[1764352026077,7.94427429,137.66,137.62,16.37738237]
[1764352026275,0.68,137.65,137.62,16.37738237]
[1764352026484,7.26427429,137.66,137.62,10.50626907]
[1764352026787,104.1,137.67,137.65,5.8711133]
[1764352026970,0.2,137.68,137.66,3.52432314]
[1764352027168,0.2,137.68,137.67,9.09426806]
[1764352027366,0.2,137.68,137.67,15.66538136]
[1764352027585,0.2,137.68,137.66,9.1111133]
[1764352027987,0.2,137.68,137.67,14.96538136]
[1764352028160,0.2,137.68,137.67,9.79426806]
[1764352028364,0.2,137.68,137.67,14.96538136]
[1764352028668,0.2,137.68,137.67,26.5528283]
[1764352028977,0.2,137.68,137.67,17.74288338]
[1764352029293,0.2,137.68,137.67,7.54806978]
[1764352030291,0.88,137.68,137.66,10.50413501]
[1764352030585,0.88,137.68,137.66,3.24]
[1764352030786,0.68,137.67,137.66,3.24]
[1764352031584,0.68,137.67,137.62,8.80994492]
[1764352031585,10.8748136,137.67,137.62,8.80994492]
[1764352031761,10.8748136,137.67,137.63,3.24]
[1764352031964,10.8748136,137.66,137.63,3.24]
[1764352032166,10.1948136,137.65,137.63,3.24]
[1764352032386,10.8748136,137.65,137.63,3.24]
[1764352032598,0.68,137.64,137.63,3.24]
[1764352036895,16.308864,137.66,137.63,3.24]
[1764352037191,0.72,137.65,137.63,3.24]
[1764352039174,18.17974046,137.65,137.63,3.24]
[1764352039599,0.72,137.64,137.63,3.24]
[1764352041225,0.72,137.64,137.57,10.1948136]
[1764352041226,7.98532984,137.64,137.57,10.1948136]
[1764352041495,10.1948136,137.63,137.59,3.24]
[1764352041670,0.72,137.62,137.59,3.24]
[1764352042088,10.1948136,137.61,137.59,3.24]
[1764352042399,10.1948136,137.6,137.52,29.07376756]
[1764352042573,10.1948136,137.58,137.53,13.4348136]
[1764352042778,10.1948136,137.57,137.53,10.51114084]
[1764352042972,10.1948136,137.57,137.53,3.24]
[1764352042973,10.1948136,137.55,137.53,3.24]
[1764352043479,0.72,137.54,137.53,3.24]
[1764352044395,7.2702309,137.55,137.53,3.24]
[1764352044605,23.57821763,137.57,137.53,21.40589685]
[1764352044899,23.57719531,137.59,137.54,11.17913674]
[1764352045076,24.29719531,137.59,137.54,11.17913674]
[1764352045270,18.18221,137.61,137.56,0.28432314]
[1764352045479,18.18221,137.61,137.57,3.24]
[1764352045679,24.2962604,137.61,137.57,3.24]
[1764352046288,23.5762604,137.61,137.57,3.24]
[1764352046488,0.72,137.6,137.57,3.24]
[1764352047386,0.72,137.63,137.58,0.98432314]
[1764352047699,0.72,137.63,137.58,11.17913674]
[1764352048299,7.98596524,137.63,137.59,7.26797005]
[1764352048529,0.72,137.62,137.6,3.24]
[1764352049100,44.66436334,137.66,137.61,0.28432314]
[1764352049301,45.38436334,137.66,137.61,0.28432314]
[1764352049502,0.72,137.65,137.61,0.28432314]
[1764352050403,7.98506326,137.65,137.61,7.55112503]
[1764352050785,0.72,137.65,137.61,7.55112503]
[1764352050984,7.98497052,137.65,137.61,8.25112503]
[1764352051186,7.98497052,137.65,137.61,7.55112503]
[1764352051386,0.72,137.64,137.61,9.09426806]
[1764352051588,0.72,137.64,137.61,0.28432314]
[1764352051804,0.72,137.64,137.61,7.55110476]
[1764352052609,7.98534727,137.64,137.61,0.28432314]
[1764352052912,7.98534727,137.64,137.61,7.55120467]
[1764352053208,0.72,137.63,137.6,3.24]
[1764352053378,10.9148136,137.63,137.6,3.24]
[1764352053584,114.2948136,137.62,137.56,19.00475852]
[1764352053780,104.1,137.62,137.58,3.24]
[1764352054087,104.1,137.62,137.61,10.1948136]
[1764352054307,7.98480667,137.65,137.61,13.4348136]
[1764352054481,7.98480667,137.65,137.61,20.70168958]
[1764352054680,0.72,137.64,137.61,20.70168958]
[1764352054888,0.72,137.65,137.61,20.70168958]
[1764352055109,0.72,137.65,137.61,13.4348136]
[1764352055617,0.72,137.65,137.61,20.70168926]
[1764352056420,0.2,137.68,137.64,10.1948136]
[1764352056628,0.2,137.68,137.66,10.1948136]
[1764352056789,0.2,137.68,137.65,21.69351226]
[1764352056995,0.2,137.68,137.66,10.1948136]
[1764352057895,0.92,137.68,137.66,10.1948136]
[1764352058118,0.92,137.68,137.65,13.71913674]
[1764352059183,0.2,137.68,137.65,21.6935856]
[1764352059389,0.2,137.68,137.66,10.1948136]
[1764352059816,0.2,137.68,137.65,21.6935856]
[1764352060494,7.46358284,137.68,137.65,3.24]
[1764352060689,0.72,137.67,137.65,3.24]
[1764352060892,10.9148136,137.67,137.65,3.24]
[1764352061198,0.72,137.67,137.65,3.24]
[1764352061532,0.72,137.66,137.65,3.24]
[1764352061824,0.2,137.68,137.66,0.71]
[1764352062036,0.2,137.68,137.67,0.28432314]
[1764352062193,0.2,137.68,137.67,10.1948136]
[1764352062597,0.2,137.68,137.66,10.47913674]
[1764352063095,0.2,137.68,137.66,0.28432314]
[1764352063303,0.2,137.68,137.67,19.99908166]
[1764352063705,0.2,137.68,137.67,9.09426806]
[1764352063903,0.2,137.68,137.67,0.28432314]
[1764352064802,0.2,137.68,137.67,17.74288338]
[1764352065202,0.2,137.68,137.66,8.80994492]
[1764352065203,0.2,137.68,137.66,17.45900365]
[1764352066932,0.2,137.68,137.67,17.74288338]
[1764352067133,0.2,137.68,137.67,27.2628283]
[1764352067514,0.2,137.68,137.67,26.5528283]
[1764352067718,0.2,137.68,137.67,27.2628283]
[1764352069030,0.2,137.68,137.67,17.0680147]
[1764352069200,0.2,137.68,137.67,27.2628283]
[1764352069606,0.2,137.68,137.67,26.5528283]
[1764352069822,0.2,137.68,137.67,27.2628283]
[1764352070255,1e-08,137.68,137.67,43.5716923]
[1764352070548,0.2,137.71,137.7,32.66529618]
[1764352070852,0.2,137.71,137.7,46.10010978]
[1764352071010,0.2,137.71,137.7,46.81010978]
[1764352072037,0.92,137.71,137.7,0.28432314]
[1764352072236,0.2,137.71,137.7,12.04994492]
[1764352072410,0.92,137.71,137.7,3.24]
[1764352073422,0.92,137.71,137.68,17.74220179]
[1764352073610,0.92,137.71,137.7,3.24]
[1764352074109,0.2,137.71,137.7,3.24]
[1764352074632,0.92,137.71,137.7,3.24]
[1764352074850,4.16,137.71,137.55,0.37408391]
[1764352075055,7.98216412,137.7,137.65,10.1948136]